[Event "27th Sharjah International Rapid Chess-c"]
[Site "Sharjah"]
[Date "2022.04.07"]
[Round "5.15"]
[White "Geldiyeva, Mahri"]
[Black "Aditya, Fenu"]
[Result "1-0"]
[ECO "E10"]
[WhiteElo "2139"]
[BlackElo "1455"]
[Annotator "TA"]
[PlyCount "203"]
[EventDate "2022.04.07"]
[EventType "rapid"]
[EventCountry "UAE"]
[SourceTitle "playchess.com"]
[Source "ChessBase"]
[SourceQuality "1"]
[TimeControl "600+3"]

{[%evp 129,203,43,35,31,42,39,71,58,101,97,335,330,302,295,343,200,200,200,199,195,207,143,168,85,85,85,667,555,956,781,922,866,844,839,864,1011,921,663,12360,12352,7052,1230,1120,339,266,97,111,8,2317,5600,2773,2449,1411,225,4614,0,0,0,0,0,0,0,0,0,29977,29972,29986,29987,29988,29989,29990,29991,29991,29991,29992,29993]} 1. d4 {[%emt 0:00:02]} Nf6 {[%emt 0:00:01]} 2. c4 {[%emt 0:00:02]} e6 {[%emt 0:00:01]} 3. Nf3 {[%emt 0:00:02]} d5 {[%emt 0:00:01]} 4. e3 {[%emt 0:00:02]} Be7 {[%emt 0:00:03]} 5. Bd3 {[%emt 0:00:02]} O-O {[%emt 0:00:06]} 6. O-O {[%emt 0:00:04]} b6 {[%emt 0:00:05]} 7. cxd5 {[%emt 0:00:04]} exd5 {[%emt 0:00:05]} 8. Nbd2 {[%emt 0:00:18]} c5 {[%emt 0:00:30]} 9. b3 {[%emt 0:00:10]} Nc6 {[%emt 0:01:44]} 10. Bb2 {[%emt 0:00:08]} Bg4 {[%emt 0:01:31]} 11. h3 {[%emt 0:00:05]} Bh5 {[%emt 0:00:01]} 12. Rc1 {[%emt 0:00:10]} Nb4 {[%emt 0:01:10]} 13. Bb1 {[%emt 0:00:03]} Bg6 {[%emt 0:00:04]} 14. a3 {[%emt 0:02:12]} Bxb1 {[%emt 0:00:58]} 15. Rxb1 {[%emt 0:00:03]} Nd3 {[%emt 0:00:29]} 16. Ba1 {[%emt 0:00:44]} cxd4 {[%emt 0:00:21]} 17. Nxd4 {[%emt 0:00:05]} Rc8 {[%emt 0:01:40]} 18. N2f3 {[%emt 0:00:21]} Nc5 {[%emt 0:00:02]} 19. b4 {[%emt 0:00:02]} Nce4 {[%emt 0:00:09]} 20. Qa4 {[%emt 0:00:39]} Qd7 {[%emt 0:00:22]} 21. Qa6 {[%emt 0:00:03]} Bd6 {[%emt 0:00:19]} 22. Rbc1 {[%emt 0:00:05]} h6 {[%emt 0:00:14]} 23. Rfd1 {[%emt 0:00:15]} Rfe8 {[%emt 0:00:03]} 24. Qd3 {[%emt 0:00:17]} Rxc1 {[%emt 0:00:08]} 25. Rxc1 {[%emt 0:00:02]} Rc8 {[%emt 0:00:00]} 26. Rd1 {[%emt 0:00:04]} Qa4 {[%emt 0:00:18]} 27. Bb2 {[%emt 0:00:08]} a5 {[%emt 0:00:15]} 28. b5 {[%emt 0:00:23]} Qc4 {[%emt 0:00:18]} 29. Nc6 {[%emt 0:00:13]} Qxd3 {[%emt 0:00:04]} 30. Rxd3 {[%emt 0:00:01]} Bc5 {[%emt 0:00:07]} 31. a4 Kf8 {[%emt 0:00:02]} 32. Nd2 {[%emt 0:00:28]} Be7 {[%emt 0:00:20]} 33. f3 {[%emt 0:00:16]} Nc5 {[%emt 0:00:02]} 34. Rd4 {[%emt 0:00:01]} Ne6 {[%emt 0:00:01]} 35. Rd3 {[%emt 0:00:29]} Nc5 {[%emt 0:00:01]} 36. Ra3 {[%emt 0:00:00]} Ne6 {[%emt 0:00:09]} 37. Ra1 {[%emt 0:00:10]} Bc5 {[%emt 0:00:01]} 38. Kf2 {[%emt 0:00:03]} Nf4 {[%emt 0:00:03]} 39. Ba3 {[%emt 0:00:11]} Bxa3 {[%emt 0:00:04]} 40. Rxa3 {[%emt 0:00:01]} Ne6 {[%emt 0:00:02]} 41. Nb3 {[%emt 0:00:10]} Ke8 {[%emt 0:00:04]} 42. Ra1 {[%emt 0:00:03]} Kd7 {[%emt 0:00:03]} 43. Rd1 {[%emt 0:00:01]} Ke8 {[%emt 0:00:05]} 44. g4 {[%emt 0:00:03]} g6 {[%emt 0:00:03]} 45. h4 {[%emt 0:00:02]} Kf8 {[%emt 0:00:02]} 46. Nbd4 {[%emt 0:00:06]} Nc5 {[%emt 0:00:03]} 47. Ra1 {[%emt 0:00:07]} Kg7 {[%emt 0:00:02]} 48. g5 {[%emt 0:00:08]} hxg5 {[%emt 0:00:02]} 49. hxg5 {[%emt 0:00:01]} Nfd7 {[%emt 0:00:04]} 50. Ne7 {[%emt 0:00:02]} Re8 {[%emt 0:00:03]} 51. Nxd5 {[%emt 0:00:02]} Re5 {[%emt 0:00:04]} 52. e4 {[%emt 0:00:21]} Rxg5 {[%emt 0:00:02]} 53. Nc6 {[%emt 0:00:30]} Rh5 {[%emt 0:00:03]} 54. Nc3 {[%emt 0:00:31]} Rh2+ {[%emt 0:00:01]} 55. Ke3 {[%emt 0:00:01]} Rc2 {[%emt 0:00:01]} 56. Ra3 {[%emt 0:00:00]} Rh2 {[%emt 0:00:07]} 57. Ne2 {[%emt 0:00:26]} Rg2 {[%emt 0:00:05]} 58. Nf4 {[%emt 0:00:06]} Rc2 {[%emt 0:00:01]} 59. Nd3 {[%emt 0:00:04]} Rc4 {[%emt 0:00:04]} 60. Nb2 {[%emt 0:00:47]} Rb4 {[%emt 0:00:00]} 61. Ra2 {[%emt 0:00:02]} Nf6 {[%emt 0:00:06]} 62. Ne5 {[%emt 0:00:12]} Rb3+ {[%emt 0:00:02]} 63. Nbd3 {[%emt 0:00:12]} Nfd7 {[%emt 0:00:04]} 64. Kd4 {[%emt 0:00:01]} Nxd3 {[%emt 0:00:03]} 65. Nxd3 {[%emt 0:00:01]} Rb1 $1 {[%emt 0:00:03]} 66. Rc2 {[%emt 0:00:04]} Rd1 {[%emt 0:00:03]} 67. Ke3 {[%emt 0:00:06]} Kf6 {[%emt 0:00:03]} 68. Rc7 {[%emt 0:00:04]} Ke6 {[%emt 0:00:02]} 69. Nf4+ {[%emt 0:00:06]} Kd6 $2 (69... Ke7 $16) 70. Rc6+ $18 {[%emt 0:00:03]} Ke7 {[%emt 0:00:02]} 71. Nd5+ {[%emt 0:00:02]} Kd8 {[%emt 0:00:04]} 72. Nxb6 {[%emt 0:00:03]} (72. Rd6 $142) 72... Nxb6 $18 {[%emt 0:00:03]} 73. Rxb6 {[%emt 0:00:01]} Ra1 {[%emt 0:00:01]} 74. Rd6+ $1 {[%emt 0:00:01]} Kc7 {[%emt 0:00:08]} 75. Rd4 {[%emt 0:00:01]} g5 {[%emt 0:00:04]} 76. Kf2 {[%emt 0:00:07]} ({White should try} 76. Rc4+ $18 Kd6 77. Rd4+ Kc7 78. Kf2) 76... Kb6 {[%emt 0:00:05]} 77. Rc4 {[%emt 0:00:02]} Kb7 $2 {[%emt 0:00:04][%mdl 8192]} (77... f6 $16 78. Kg2 (78. Rc6+ Kb7 $16) 78... Kb7) 78. e5 $1 $18 {[%emt 0:00:21]} Kb8 {[%emt 0:00:01]} 79. f4 {[%emt 0:00:07]} gxf4 {[%emt 0:00:02]} 80. Rxf4 {[%emt 0:00:00]} Ra2+ {[%emt 0:00:04]} 81. Kf3 {[%emt 0:00:05]} Ra3+ {[%emt 0:00:01] [#]} 82. Kg4 $1 {[%emt 0:00:02]} Re3 {[%emt 0:00:01]} 83. Kf5 {[%emt 0:00:01]} Kb7 {[%emt 0:00:03]} 84. Kf6 {[%emt 0:00:05]} Kb6 {[%emt 0:00:04]} 85. Rc4 {[%emt 0:00:01]} (85. Rf5 $142 Re4 86. Kxf7 Rxa4 87. e6) 85... Kb7 {[%emt 0:00:08]} 86. Rc5 $2 {[%emt 0:00:10]} (86. Rh4 {Hoping for Rh5.} Rf3+ 87. Kg5) 86... Rf3+ $18 {[%emt 0:00:01] [#]} 87. Ke7 $2 {[%emt 0:00:02]} (87. Kg5 $1 $18 {is the precise move to win.}) 87... Rf4 $16 {[%emt 0:00:02]} 88. Rd5 {[%emt 0:00:05]} ({Only move:} 88. Rc6 $16 Re4 89. Kxf7 Rxe5 90. Ra6) 88... Kb6 $2 {[%emt 0:00:04][%mdl 8192]} (88... Rxa4 $11 89. Kxf7 Rf4+ 90. Kg6 Re4) 89. Rd6+ $18 {[%emt 0:00:15]} Kc5 {[%emt 0:00:01]} 90. Rf6 {[%emt 0:00:01]} Re4 {[%emt 0:00:01]} 91. Rc6+ $2 {[%emt 0:00:04]} (91. Rf5 {Strongly threatening e6+.} Kb6 92. Kxf7) 91... Kb4 $2 {[%emt 0:00:02]} (91... Kd5 92. Kxf7 Rxe5) 92. Kf6 $2 {[%emt 0:00:04]} (92. b6 $18 {Intending b7 and mate.} Rxe5+ 93. Kd6) 92... Kxa4 $11 {[%emt 0:00:03]} 93. b6 {[%emt 0:00:01]} Rb4 $1 {[%emt 0:00:07]} 94. Kxf7 {[%emt 0:00:02]} Kb5 {[%emt 0:00:02]} 95. Rd6 {[%emt 0:00:03]} Kc5 {[%emt 0:00:04]} 96. Ke7 {[%emt 0:00:06]} Re4 $2 {[%emt 0:00:03][%mdl 8192]} (96... a4 $11) 97. e6 {[%emt 0:00:02]} Rh4 {[%emt 0:00:02]} 98. Kd7 {[%emt 0:00:02]} Rh7+ {[%emt 0:00:02]} 99. e7 {[%emt 0:00:01]} a4 {[%emt 0:00:04]} 100. b7 {[%emt 0:00:02]} Rh8 {[%emt 0:00:04]} 101. Ra6 {[%emt 0:00:02]} Rb8 {[%emt 0:00:04]} 102. e8=Q 1-0

[Event "27th Sharjah International Rapid Chess-c"]
[Site "Sharjah"]
[Date "2022.04.07"]
[Round "5.16"]
[White "Sultan, Ibrahim"]
[Black "Vishal Choudary B"]
[Result "0-1"]
[ECO "A80"]
[WhiteElo "2029"]
[BlackElo "2109"]
[Annotator "TA"]
[PlyCount "51"]
[EventDate "2022.04.07"]
[EventType "rapid"]
[EventCountry "UAE"]
[SourceTitle "playchess.com"]
[Source "ChessBase"]
[SourceQuality "1"]
[TimeControl "600+3"]

{[%evp 9,51,24,27,-11,-5,-4,10,-93,-77,-234,-231,-239,-211,-196,-201,-289,-283,-363,-337,-504,-539,-540,-516,-727,-727,-711,-710,-1016,-836,-915,-905,-812,-638,-598,-389,-983,-866,-1332,-1323,-1274,-1275,-5211,-2460,-29989]} 1. d4 {[%emt 0:00:02]} f5 {[%emt 0:00:01]} 2. Bg5 {[%emt 0:00:03]} c6 {[%emt 0:00:03]} 3. e3 {[%emt 0:00:12]} d6 {[%emt 0:00:15]} 4. Bd3 {[%emt 0:00:21]} Qb6 {[%emt 0:00:05]} 5. b3 {[%emt 0:00:06]} g6 {[%emt 0:00:08] [#]} 6. h4 $146 {[%emt 0:00:03] A80: Dutch Defence: Unusual White second moves.} ({Predecessor:} 6. Nd2 Bg7 7. Ne2 Nf6 8. c4 O-O 9. O-O Na6 10. Rc1 c5 11. d5 e5 12. dxe6 Bxe6 {0-1 (66) Popchev,M (2300)-Grigorov,J (2435) Sofia 1985}) 6... h6 {[%emt 0:00:04]} 7. Bf4 {[%emt 0:00:04]} Bg7 {[%emt 0:00:01]} 8. g4 {[%emt 0:00:09]} (8. Nd2 $11 {keeps the balance.}) 8... e5 $17 {[%emt 0:00:03]} 9. gxf5 $2 {[%emt 0:01:11] [#]} exf4 $19 {[%emt 0:00:25]} 10. fxg6 {[%emt 0:00:02]} fxe3 {[%emt 0:00:13]} 11. fxe3 {[%emt 0:00:02]} Nf6 {[%emt 0:00:02][%cal Bg8f6,Bf6e4,Be4f2][%mdl 32]} 12. Ne2 {[%emt 0:00:56]} (12. Qd2 {was called for.}) 12... O-O {[%emt 0:00:13]} 13. Nd2 {[%emt 0:00:23]} d5 {[%emt 0:00:07]} 14. Nf4 {[%emt 0:01:40]} (14. O-O $142) 14... Re8 {[%emt 0:00:04][%csl LRd4,LRe3]} 15. Nf3 {[%emt 0:03:03]} Bg4 {[%emt 0:00:28]} 16. Kd2 {[%emt 0:00:14]} Ne4+ {[%emt 0:00:07]} 17. Kc1 {[%emt 0:00:54]} Nf2 {[%emt 0:00:56][%csl LRd1,LRe3,LRh1]} 18. Qg1 {[%emt 0:00:30]} Nxd3+ {[%emt 0:00:03]} 19. cxd3 {[%emt 0:00:01]} Bxf3 {[%emt 0:00:01]} 20. Rh3 {[%emt 0:00:04]} Nd7 {[%emt 0:00:58][%cal Oc6c5,Bb8d7,Bd7f6,Bf6g4][%mdl 32] [#] Hoping for ...c5!} 21. Rxf3 {[%emt 0:00:05]} Nf6 {[%emt 0:00:01] Prevents Nh5. ...c5 is the strong threat.} 22. Qf2 $2 {[%emt 0:00:26]} (22. Kd1 Rac8 23. Rc1) 22... c5 {[%emt 0:00:06] Black is clearly winning.} 23. Ne2 {[%emt 0:00:22]} Rac8 {[%emt 0:00:10]} 24. Kd1 {[%emt 0:00:11]} cxd4 {[%emt 0:00:50]} 25. Nxd4 {[%emt 0:00:08]} Ng4 {[%emt 0:00:04][%csl LRf2,LRg6]} 26. Qg2 {White did not feel at home in the position after the opening.  Weighted Error Value: White=1.53/Black=0.37} 0-1

[Event "27th Sharjah International Rapid Chess-c"]
[Site "Sharjah"]
[Date "2022.04.07"]
[Round "5.17"]
[White "Hamad Bader"]
[Black "Fernandez, Dandel"]
[Result "0-1"]
[ECO "C40"]
[WhiteElo "1870"]
[BlackElo "2011"]
[Annotator "TA"]
[PlyCount "82"]
[EventDate "2022.04.07"]
[EventType "rapid"]
[EventCountry "UAE"]
[SourceTitle "playchess.com"]
[Source "ChessBase"]
[SourceQuality "1"]
[TimeControl "600+3"]

{[%evp 10,82,103,87,108,86,98,91,87,84,96,91,115,78,89,88,77,20,51,0,17,-59,-49,-64,-54,-61,-10,-42,-25,-58,-66,-106,-111,-133,-130,-113,-120,-122,-119,-121,-114,-169,-169,-228,-190,-260,-212,-279,-206,-301,-293,-281,-272,-297,-321,-478,-449,-568,-548,-793,-782,-721,-699,-1141,-894,-909,-903,-1698,-1527,-1398,-1376,-956,-718,-680,-654]} 1. e4 {[%emt 0:00:01]} e5 {[%emt 0:00:10]} 2. Nf3 {[%emt 0:00:01][%cal Bg1f3,Bf3e5,Be5c4,Bc4e3][%mdl 32]} f5 {[%emt 0:00:01]} 3. Nxe5 {[%emt 0:00:10]} Qf6 {[%emt 0:00:02]} 4. d4 {[%emt 0:00:51]} d6 {[%emt 0:00:02]} 5. Nc4 {[%emt 0:00:00]} fxe4 {[%emt 0:00:01]} 6. Be2 {[%emt 0:00:06]} Qd8 {[%emt 0:00:04] C40: Latvian and Elephant Gambits.} 7. O-O {[%emt 0:00:10] Black must now prevent f3.} Nf6 {[%emt 0:00:01]} 8. Ne3 {[%emt 0:00:02]} Be7 {[%emt 0:00:03] White is better.} 9. c4 {[%emt 0:00:01]} O-O {[%emt 0:00:06]} 10. Nc3 {[%emt 0:00:01] [#]} Qe8 $146 {[%emt 0:00:14]} ({Predecessor:} 10... Be6 11. Qc2 Nc6 12. Rd1 Bf7 13. Nxe4 Bg6 14. Bf3 Qd7 15. Nxf6+ Bxf6 16. Qa4 Rae8 {½-½ (41) Alvarez Villar,H (2325)-Malmstroem,J (2223) SEMI email 2000}) 11. Ned5 {[%emt 0:00:49]} Nxd5 {[%emt 0:01:11]} 12. Nxd5 {[%emt 0:00:04]} Bd8 {[%emt 0:00:02]} 13. Bg4 {[%emt 0:00:22]} (13. Bh5 $16 g6 14. Bg4) 13... Nd7 {[%emt 0:00:48]} 14. Re1 {[%emt 0:00:35]} (14. Nc3 $14) 14... c6 {[%emt 0:01:53]} 15. Bxd7 {[%emt 0:02:12]} (15. Nc3 $11) 15... Bxd7 $15 {[%emt 0:00:04]} 16. Nc3 {[%emt 0:00:11][%cal Bd5c3,Bc3e2,Be2f4][%mdl 32]} Qf7 $1 {[%emt 0:00:52][%csl LRc4,LRf2]} 17. Be3 {[%emt 0:00:31]} Qg6 {[%emt 0:00:17]} (17... d5 $15) 18. Ne2 {[%emt 0:01:07]} Bg4 {[%emt 0:00:59]} 19. Qb3 {[%emt 0:00:28]} Ba5 $40 {[%emt 0:00:08][%mdl 128] Black attacks.} 20. Nf4 {[%emt 0:01:28] [#] Black keeps a firm grip on the game.} Qf7 {[%emt 0:00:02]} 21. h3 {[%emt 0:01:21] [#]} g5 $1 {[%emt 0:00:00]} 22. Ne2 {[%emt 0:00:26]} Bxe1 {[%emt 0:01:00] &Nero is more active.} 23. Rxe1 {[%emt 0:00:01]} Bxe2 {[%emt 0:00:41]} 24. Rxe2 {[%emt 0:00:02]} h6 {[%emt 0:00:02][%cal Bh7h6,Bh6h5][%mdl 32]} 25. a4 {[%emt 0:00:09]} (25. d5 $17) 25... d5 $19 {[%emt 0:00:03]} 26. c5 {[%emt 0:00:01]} (26. Rc2 $142) 26... Rae8 {[%emt 0:00:15]} 27. Qc3 {[%emt 0:00:04]} (27. Rd2 $142) 27... Qg7 {[%emt 0:00:16]} 28. b4 {[%emt 0:00:09]} h5 {[%emt 0:00:02]} 29. b5 {[%emt 0:00:03]} (29. Qc1 $142) 29... g4 {[%emt 0:00:09]} 30. h4 {[%emt 0:00:01]} g3 {[%emt 0:00:01]} 31. fxg3 Qxg3 {[%emt 0:00:07]} 32. Qd2 {[%emt 0:00:07]} (32. Qe1 $142 Qxe1+ 33. Rxe1) 32... Qxh4 {[%emt 0:00:13] Black is clearly winning.} 33. Bg5 {[%emt 0:00:03]} Qg4 {[%emt 0:00:04]} 34. bxc6 {[%emt 0:00:03]} bxc6 {[%emt 0:00:01]} 35. Bh6 {[%emt 0:00:03]} Rf5 {[%emt 0:00:54] Strongly threatening ...h4.} 36. Rf2 {[%emt 0:00:02]} Re6 {[%emt 0:00:47] aiming for ...Rxf2.} 37. Rxf5 {[%emt 0:00:04]} Qxf5 {[%emt 0:00:01]} 38. Be3 {[%emt 0:00:03]} Rg6 {[%emt 0:00:02]} 39. Qe2 {[%emt 0:00:03]} h4 {[%emt 0:00:02] ( -> ...h3)} 40. Kh2 {[%emt 0:00:02] Inhibits h3.} h3 {[%emt 0:00:04]} 41. gxh3 Qf3 {Weighted Error Value: White=0.62/Black=0.25 (precise)} 0-1

[Event "27th Sharjah International Rapid Chess-c"]
[Site "Sharjah"]
[Date "2022.04.07"]
[Round "5.18"]
[White "Mohammed, Dilshad"]
[Black "Mohammad Abdulrahman, Alawadhi"]
[Result "1-0"]
[ECO "A06"]
[WhiteElo "2041"]
[BlackElo "1371"]
[Annotator "TA"]
[PlyCount "127"]
[EventDate "2022.04.07"]
[EventType "rapid"]
[EventCountry "UAE"]
[SourceTitle "playchess.com"]
[Source "ChessBase"]
[SourceQuality "1"]
[TimeControl "600+3"]

{[%evp 49,127,3,10,-66,-62,-75,-61,-57,-56,-62,-67,-92,-90,-129,-131,-127,7,9,39,41,39,22,53,60,60,39,58,43,57,40,48,28,28,28,68,61,62,58,72,74,84,56,56,56,57,57,68,13,13,16,24,18,36,30,67,60,78,1,1,0,112,106,1578,1519,1294,1353,2446,1184,29953,5177,12820,12824,11337,9021,6099,5621,5933,6025,2386,2007]} 1. Nf3 {[%emt 0:00:02]} d5 {[%emt 0:00:02]} 2. c4 {[%emt 0:00:02]} c6 {[%emt 0:00:01]} 3. e3 {[%emt 0:00:01]} Nf6 {[%emt 0:00:03]} 4. Nc3 {[%emt 0:00:01]} e6 {[%emt 0:00:19]} 5. Qc2 {[%emt 0:00:01]} Nbd7 {[%emt 0:00:11]} 6. d4 {[%emt 0:00:02]} dxc4 {[%emt 0:00:02]} 7. Bxc4 {[%emt 0:00:01]} Bd6 {[%emt 0:00:16]} 8. O-O {[%emt 0:00:31]} O-O {[%emt 0:00:06]} 9. Rd1 {[%emt 0:00:03]} Qc7 {[%emt 0:00:16]} 10. a4 {[%emt 0:00:20]} e5 {[%emt 0:00:04]} 11. a5 {[%emt 0:00:19]} exd4 {[%emt 0:00:05]} 12. exd4 {[%emt 0:00:03]} h6 {[%emt 0:00:42]} 13. h3 {[%emt 0:00:09]} b5 {[%emt 0:00:07]} 14. axb6 {[%emt 0:00:09]} Nxb6 {[%emt 0:00:02]} 15. Bd3 {[%emt 0:00:24]} Be6 {[%emt 0:00:41]} 16. Bd2 {[%emt 0:00:57]} a5 {[%emt 0:01:15]} 17. b3 {[%emt 0:00:41]} Nbd5 {[%emt 0:00:17]} 18. Ne4 {[%emt 0:00:17]} Bb4 {[%emt 0:00:38]} 19. Nxf6+ {[%emt 0:00:47]} Nxf6 {[%emt 0:00:05]} 20. Ne5 {[%emt 0:00:55]} Bd5 {[%emt 0:00:29]} 21. Bf4 {[%emt 0:00:28]} Qb7 {[%emt 0:00:16]} 22. Nc4 {[%emt 0:00:23]} Rfd8 {[%emt 0:00:13]} 23. Be5 {[%emt 0:00:15]} Nd7 {[%emt 0:00:41]} 24. Bf4 {[%emt 0:00:38]} Nf6 {[%emt 0:00:05]} 25. Rac1 {[%emt 0:00:14]} Bf8 {[%emt 0:00:10]} 26. Rb1 {[%emt 0:00:29]} (26. Qd2 $11) 26... c5 $15 {[%emt 0:00:35]} 27. f3 {[%emt 0:01:12]} cxd4 {[%emt 0:00:04]} 28. Be5 {[%emt 0:00:12]} Be6 {[%emt 0:01:14]} 29. Bxf6 {[%emt 0:00:25]} gxf6 {[%emt 0:00:01]} 30. Qd2 {[%emt 0:00:17]} Qc7 {[%emt 0:00:17]} 31. f4 {[%emt 0:00:38]} a4 {[%emt 0:00:17]} 32. Rdc1 {[%emt 0:00:26]} Bxc4 {[%emt 0:00:56]} (32... Rdb8 $17 33. Ne5 Bb4 $1) 33. Rxc4 $11 {[%emt 0:00:04]} Qa5 {[%emt 0:00:10]} 34. Qxa5 {[%emt 0:00:08]} Rxa5 {[%emt 0:00:01]} 35. Rxa4 {[%emt 0:00:01]} Rxa4 {[%emt 0:00:11]} 36. bxa4 {[%emt 0:00:01]} Ra8 {[%emt 0:00:06]} 37. Ra1 {[%emt 0:00:03]} Ra5 {[%emt 0:00:02]} 38. Bb5 {[%emt 0:00:02]} Bb4 {[%emt 0:00:03]} 39. Kf2 {[%emt 0:00:03]} Bc3 {[%emt 0:00:01]} 40. Rb1 {[%emt 0:00:02]} Ra7 {[%emt 0:00:07]} 41. Ke2 {[%emt 0:00:14]} Re7+ {[%emt 0:00:02]} 42. Kd3 {[%emt 0:00:01]} Re3+ {[%emt 0:00:02]} 43. Kc4 {[%emt 0:00:01]} Re2 {[%emt 0:00:30]} 44. Bc6 {[%emt 0:00:02]} Ra2 {[%emt 0:00:04]} 45. Kb3 {[%emt 0:00:02]} Rf2 {[%emt 0:00:02]} 46. Bf3 {[%emt 0:00:02]} Kg7 {[%emt 0:00:09]} 47. f5 {[%emt 0:00:02]} h5 {[%emt 0:00:04]} 48. Kc4 {[%emt 0:00:02]} ({Better is} 48. h4 $1 $14) 48... Ra2 $11 {[%emt 0:00:04]} 49. Bc6 {[%emt 0:00:02]} h4 {[%emt 0:00:04]} 50. Rb7 {[%emt 0:00:02]} Rf2 {[%emt 0:00:09]} 51. Bd5 {[%emt 0:00:05]} Rxf5 {[%emt 0:00:03]} 52. Rxf7+ {[%emt 0:00:02]} Kh6 $1 {[%emt 0:00:01] [#]} 53. Rf8 {[%emt 0:00:10]} (53. Ra7 $1 $16) 53... Kg5 $11 {[%emt 0:00:02]} 54. Rg8+ {[%emt 0:00:06]} Kh6 {[%emt 0:00:05]} (54... Kf4 $11) 55. Rg4 {[%emt 0:00:01]} Rxd5 $2 {[%emt 0:00:11][%mdl 8192]} (55... Rf1 $16) 56. Kxd5 $18 {[%emt 0:00:02]} d3 {[%emt 0:00:00]} 57. Rxh4+ {[%emt 0:00:07]} Kg6 {[%emt 0:00:01]} 58. Rg4+ {[%emt 0:00:01]} (58. Rf4 $142 Be1 59. Rd4) 58... Kf7 {[%emt 0:00:01]} 59. Rf4 {[%emt 0:00:04]} (59. Rg3 $142 d2 60. Rd3 Ba5 61. Kc4 Bc7 62. Rxd2 Ke6 63. Kb5 f5 64. a5) 59... d2 {[%emt 0:00:01]} 60. Rf1 {[%emt 0:00:01]} Ke7 {[%emt 0:00:05]} 61. Kc4 {[%emt 0:00:01]} Ba5 {[%emt 0:00:01]} 62. Kd3 {[%emt 0:00:02]} Kd6 {[%emt 0:00:00]} 63. Rd1 {[%emt 0:00:02]} Ke5 {[%emt 0:00:02]} 64. Rxd2 {[%emt 0:00:01]} 1-0

[Event "27th Sharjah International Rapid Chess-c"]
[Site "Sharjah"]
[Date "2022.04.07"]
[Round "5.19"]
[White "Almaamari, Zainab Darwish"]
[Black "Ahmed, Fareed"]
[Result "0-1"]
[ECO "A02"]
[WhiteElo "1374"]
[BlackElo "1893"]
[Annotator "NA RC"]
[PlyCount "104"]
[EventDate "2022.04.07"]
[EventType "rapid"]
[EventCountry "UAE"]
[SourceTitle "playchess.com"]
[Source "ChessBase"]
[SourceQuality "1"]
[TimeControl "600+3"]

1. f4 {[%emt 0:00:03]} Nf6 {[%emt 0:00:05]} 2. g3 {[%emt 0:00:00]} d6 {[%emt 0:00:12]} 3. Bg2 {[%emt 0:00:00]} Nbd7 {[%emt 0:00:03]} 4. e4 {[%emt 0:00:01]} e5 {[%emt 0:00:03]} 5. f5 {[%emt 0:00:01]} c6 {[%emt 0:00:07]} 6. d4 {[%emt 0:00:07]} exd4 {[%emt 0:00:11]} 7. Qxd4 {[%emt 0:00:01]} Qb6 {[%emt 0:00:05]} 8. Qxb6 {[%emt 0:00:20]} axb6 {[%emt 0:00:03]} 9. Bf4 {[%emt 0:00:24]} Nc5 {[%emt 0:01:10]} 10. Nc3 {[%emt 0:00:16]} b5 {[%emt 0:00:21]} 11. b4 {[%emt 0:01:17]} Na4 {[%emt 0:00:02]} 12. Nge2 {[%emt 0:00:34]} Nxc3 {[%emt 0:00:10]} 13. Nxc3 {[%emt 0:00:01]} Ra3 {[%emt 0:00:02]} 14. Nb1 {[%emt 0:00:54]} Ra4 {[%emt 0:00:20]} 15. c3 {[%emt 0:00:01]} Be7 {[%emt 0:00:22]} 16. O-O {[%emt 0:00:11]} O-O {[%emt 0:00:16]} 17. Rd1 {[%emt 0:00:07]} Rd8 {[%emt 0:00:04]} 18. Be3 {[%emt 0:00:30]} Nd7 {[%emt 0:00:16]} 19. Bf4 {[%emt 0:01:03]} Ne5 {[%emt 0:00:52]} 20. Bxe5 {[%emt 0:00:16]} dxe5 {[%emt 0:00:01]} 21. Rxd8+ {[%emt 0:00:01]} Bxd8 {[%emt 0:00:02]} 22. Nd2 {[%emt 0:00:12]} g6 {[%emt 0:00:17]} 23. g4 {[%emt 0:00:06]} Bg5 {[%emt 0:01:04]} 24. Nf3 {[%emt 0:00:14]} Be3+ {[%emt 0:00:13]} 25. Kf1 {[%emt 0:00:23]} gxf5 {[%emt 0:00:12]} 26. gxf5 {[%emt 0:00:31]} f6 {[%emt 0:00:01]} 27. Ke2 {[%emt 0:00:08]} Bf4 {[%emt 0:00:30]} 28. h3 {[%emt 0:00:01]} Kf7 {[%emt 0:00:06]} 29. Ne1 {[%emt 0:00:01]} Ra3 {[%emt 0:00:19]} 30. Kd3 {[%emt 0:00:02]} b6 {[%emt 0:00:11]} 31. Nc2 {[%emt 0:00:53]} Ra7 {[%emt 0:00:03]} 32. c4 {[%emt 0:00:01]} Rd7+ {[%emt 0:00:22]} 33. Kc3 {[%emt 0:01:03]} bxc4 {[%emt 0:00:03]} 34. Kxc4 {[%emt 0:00:37]} Ba6+ {[%emt 0:00:01]} 35. Kb3 {[%emt 0:00:00]} Rd3+ {[%emt 0:00:02]} 36. Kb2 {[%emt 0:00:02]} Rd2 {[%emt 0:00:02]} 37. Bf1 {[%emt 0:00:17]} Bb7 {[%emt 0:00:29]} 38. Kc3 {[%emt 0:00:21]} c5 {[%emt 0:00:33]} 39. Bc4+ {[%emt 0:00:34]} Kg7 {[%emt 0:00:23]} 40. Bd3 {[%emt 0:00:02]} cxb4+ {[%emt 0:00:34]} 41. Nxb4 {[%emt 0:00:01]} Rh2 {[%emt 0:00:02]} 42. Rg1+ {[%emt 0:00:06]} Kf8 {[%emt 0:00:17]} 43. Nd5 {[%emt 0:00:03]} Bxd5 {[%emt 0:00:35]} 44. exd5 {[%emt 0:00:01]} Rxh3 {[%emt 0:00:05]} 45. Kc4 {[%emt 0:00:01]} Be3 46. Rb1 {[%emt 0:00:04]} Rh4+ {[%emt 0:00:30]} 47. Kb5 {[%emt 0:00:05]} Bc5 {[%emt 0:00:14]} 48. Kc6 {[%emt 0:00:07]} Rd4 {[%emt 0:00:04]} 49. Ba6 {[%emt 0:00:05]} h5 {[%emt 0:00:13]} 50. Rh1 {[%emt 0:00:06]} h4 {[%emt 0:00:03]} 51. Kd7 {[%emt 0:00:05]} Rxd5+ {[%emt 0:00:05]} 52. Ke6 Rd6# {[%emt 0:00:05]} 0-1